bitfinex/quotes_ETHUSD_20250822
["timestamp","ask_amount","ask_price","bid_price","bid_amount"]
[1755860580447,0.36374989,4304.3,4304.2,2.63401211]
[1755860581781,0.36374989,4304.3,4304.2,3.09181211]
[1755860583191,0.001,4305.6,4304.5,2.32314033]
[1755860583397,0.001,4305.6,4305.2,2.32273306]
[1755860583597,0.36362664,4305.4,4305.2,2.32273306]
[1755860583888,0.36362664,4305.4,4305.1,2.32282641]
[1755860584089,0.36362664,4305.4,4304.6,0.4578]
[1755860584303,0.36362664,4305.4,4304.7,0.27809618]
[1755860585491,0.36362664,4305.4,4304.6,0.4578]
[1755860585803,0.36362664,4305.4,4305.2,2.32272016]
[1755860586099,0.2934,4305.3,4304.8,2.32297697]
[1755860586397,0.4594,4305.2,4304.3,0.17441852]
[1755860586601,0.4594,4305.2,4304.2,2.32730416]
[1755860586602,0.4594,4305.2,4304.6,0.004]
[1755860586818,3.0,4305.1,4304.6,0.004]
[1755860587098,0.2934,4304.7,4304.6,0.004]
[1755860587291,3.2934,4304.7,4304.6,0.004]
[1755860587604,0.7528,4304.7,4304.6,0.004]
[1755860587804,1.11649432,4304.7,4304.6,0.004]
[1755860589306,4.11649432,4304.7,4304.6,0.004]
[1755860589677,0.36369432,4304.7,4304.6,0.004]
[1755860590003,0.36369432,4304.7,4304.6,2.63169622]
[1755860590169,0.36369432,4304.7,4304.6,3.12718422]
[1755860590364,0.36369432,4304.7,4304.6,3.59318422]
[1755860590669,0.36369432,4304.7,4304.6,0.499488]
[1755860590892,0.67039432,4304.7,4304.6,0.004]
[1755860591203,0.66959432,4304.7,4304.6,2.32709622]
[1755860591386,0.66959432,4304.7,4304.6,0.004]
[1755860591905,1.13809432,4304.7,4304.6,0.004]
[1755860592902,1.13809432,4304.7,4304.6,2.32709622]
[1755860593104,0.66959432,4304.7,4304.6,2.32709622]
[1755860593478,0.36289432,4304.7,4304.6,2.63169622]
[1755860594997,0.36289432,4304.7,4304.6,0.004]
[1755860595382,0.66959432,4304.7,4304.6,0.004]
[1755860595701,1.13809432,4304.7,4304.6,0.004]
[1755860596287,1.48419207,4304.7,4304.6,0.004]
[1755860596478,0.66959432,4304.7,4304.6,0.004]
[1755860596906,0.36289432,4304.7,4304.6,2.32709622]
[1755860597109,0.36289432,4304.7,4304.6,2.63169622]
[1755860601704,0.36289432,4304.7,4304.6,0.004]
[1755860601905,0.36289432,4304.7,4304.6,2.32709622]
[1755860602501,0.36289432,4304.7,4304.6,2.63169622]
[1755860603279,0.36209432,4304.7,4304.6,3.12718534]
[1755860604820,0.36209432,4304.7,4304.6,3.59318534]
[1755860605027,0.36209432,4304.7,4304.6,3.12718534]
[1755860605591,0.66879432,4304.7,4304.6,0.004]
[1755860605826,0.36209432,4304.7,4304.6,0.004]
[1755860607531,0.36209432,4304.7,4304.6,0.3086]
[1755860608018,0.36209432,4304.7,4304.6,2.63169622]
[1755860611815,0.36209432,4304.7,4304.6,0.3086]
[1755860612258,0.36209432,4304.7,4304.6,0.004]
[1755860612548,0.66879432,4304.7,4304.6,0.004]
[1755860613218,1.25408574,4304.7,4304.6,0.004]
[1755860614153,1.13729432,4304.7,4304.6,0.004]
[1755860615555,0.66799432,4304.7,4304.6,0.004]
[1755860616455,0.36129432,4304.7,4304.6,2.65492718]
[1755860616642,0.36129432,4304.7,4304.6,2.63169622]
[1755860619632,0.36229432,4304.7,4304.6,2.63169622]
[1755860619948,0.36229432,4304.7,4304.6,3.12718423]
[1755860622451,0.67639432,4304.7,4304.6,2.32709622]
[1755860622652,0.36229432,4304.7,4304.6,2.32709622]
[1755860623548,0.36229432,4304.7,4304.6,0.004]
[1755860623856,0.36229432,4304.7,4304.6,2.32709622]
[1755860624544,0.36229432,4304.7,4304.6,0.004]
[1755860624745,0.36229432,4304.7,4304.6,2.32709622]
[1755860625460,0.36229432,4304.7,4304.6,2.63849622]
[1755860627129,0.36229432,4304.7,4304.6,0.004]
[1755860627327,0.67639432,4304.7,4304.6,0.004]
[1755860627623,1.13189432,4304.7,4304.6,0.004]
[1755860627854,0.67559432,4304.7,4304.6,0.004]
[1755860628432,0.67559432,4304.7,4304.6,2.32709622]
[1755860628863,0.67559432,4304.7,4304.6,0.004]
[1755860629253,1.13189432,4304.7,4304.6,2.32709622]
[1755860629455,0.36149432,4304.7,4304.6,2.63849622]
[1755860629641,0.36149432,4304.7,4304.6,3.13466591]
[1755860639475,0.36149432,4304.7,4304.6,3.15789687]
[1755860639844,0.36069432,4304.7,4304.6,3.15789687]
[1755860640266,0.36069432,4304.7,4304.6,3.62519687]
[1755860640559,0.36069432,4304.7,4304.6,3.15789687]
[1755860640764,0.36069432,4304.7,4304.6,3.13466591]
[1755860641845,0.67479432,4304.7,4304.6,2.82326591]
[1755860642185,0.67479432,4304.7,4304.6,2.32709622]
[1755860642348,1.13109432,4304.7,4304.6,2.32709622]
[1755860643073,1.13109432,4304.7,4304.6,0.004]
[1755860643772,1.13109432,4304.7,4304.6,2.32709622]
[1755860644165,0.67479432,4304.7,4304.6,2.32709622]
[1755860644465,0.67479432,4304.7,4304.6,0.004]
[1755860644466,1.13109432,4304.7,4304.6,0.004]
[1755860647174,1.13109432,4304.7,4304.6,2.32709622]
[1755860647378,0.67479432,4304.7,4304.6,0.004]
[1755860647677,0.36069432,4304.7,4304.6,2.63849622]
[1755860648669,0.36069432,4304.7,4304.6,3.07959622]
[1755860648866,0.36069432,4304.7,4304.6,3.62219622]
[1755860649064,0.001,4304.7,4304.6,3.62219622]
[1755860649657,0.001,4304.7,4304.6,4.28219622]
[1755860649887,1e-08,4304.7,4304.6,4.30542718]
[1755860650058,0.001,4305.2,4304.6,4.30542718]
[1755860650059,0.001,4305.6,4305.5,2.32261061]
[1755860650387,0.36457561,4306.3,4306.2,2.98223305]
[1755860650556,1e-08,4306.3,4306.2,12.90051055]
[1755860650894,1e-08,4306.3,4306.2,13.34161055]
[1755860651682,1e-08,4306.3,4306.2,6.27943305]
[1755860651865,1e-08,4306.3,4306.2,2.61943305]
[1755860652068,1e-08,4306.3,4306.2,3.15772045]
[1755860652383,0.00020001,4306.6,4306.5,2.32207128]
[1755860652546,0.30030001,4306.6,4306.5,2.32207128]
[1755860652746,0.00020001,4306.6,4306.5,2.32207128]
[1755860653870,0.00020001,4306.6,4306.5,2.61927128]
[1755860654073,0.30030001,4306.6,4306.2,0.71114662]
[1755860654250,0.76340001,4306.6,4306.2,2.32221993]
[1755860654449,0.76340001,4306.6,4306.4,2.32208287]
[1755860654684,0.76340001,4306.6,4306.2,2.32221993]
[1755860655178,0.30030001,4306.6,4306.3,2.32216575]
[1755860655360,0.30030001,4306.6,4306.4,2.3221252]
[1755860655361,0.4631,4306.5,4306.4,2.3221252]
[1755860655566,0.7632,4306.5,4306.4,2.3221252]
[1755860656549,0.00020001,4306.6,4306.5,2.32207128]
[1755860657567,0.30030001,4306.6,4306.5,2.32207128]
[1755860657774,0.00020001,4306.6,4306.5,2.32207128]
[1755860658966,0.30030001,4306.6,4306.4,2.32212053]
[1755860659174,0.4631,4306.5,4305.5,0.385467]
[1755860659359,0.4631,4306.5,4306.1,2.32226244]
[1755860659688,0.3001,4306.2,4305.9,2.32238114]
[1755860660007,0.3001,4306.2,4305.2,5.32277246]
[1755860660008,0.4631,4306.1,4305.8,2.32240542]
[1755860660208,0.3001,4305.9,4305.8,2.32240542]
[1755860661385,0.36352962,4306.0,4305.9,2.32239485]
[1755860661561,0.66362962,4306.0,4305.9,2.32239485]
[1755860661766,0.66362962,4306.0,4305.4,2.32262355]
[1755860661767,1.12672962,4306.0,4305.4,2.32262355]
[1755860661972,0.66362962,4306.0,4305.5,2.32256138]
[1755860662168,0.66362962,4306.0,4305.1,2.32281326]
[1755860662169,0.4631,4305.9,4305.1,2.32281326]
[1755860662465,0.4631,4305.9,4305.6,2.32254281]
[1755860662766,0.36352962,4306.0,4304.8,0.02]
[1755860662767,0.3001,4305.7,4304.8,0.02]
[1755860662960,0.3001,4305.7,4305.3,2.3226774]
[1755860663162,0.7632,4305.7,4305.6,2.32255667]
[1755860663360,0.66366379,4305.7,4305.6,2.32255667]
[1755860663894,0.66366379,4305.7,4305.4,2.32265384]
[1755860663895,1.12676379,4305.7,4305.3,2.3227061]
[1755860664192,1.12676379,4305.7,4304.9,0.27881271]
[1755860664193,1.12676379,4305.7,4305.5,2.32257232]
[1755860664357,0.4631,4305.6,4305.4,2.32264829]
[1755860664559,0.3001,4305.5,4305.4,2.32264829]
[1755860664758,0.36356379,4305.7,4305.6,2.32255667]
[1755860665189,0.36356379,4305.7,4305.6,2.61975667]
[1755860666182,0.36356379,4305.7,4305.6,3.11631978]
[1755860666801,0.66366379,4305.7,4305.6,2.81911978]
[1755860667113,0.36356379,4305.7,4305.6,2.61975667]
[1755860667602,0.36356379,4305.7,4305.6,2.32255667]
[1755860667799,0.66366379,4305.7,4305.6,2.32255667]
[1755860669101,0.66366379,4305.7,4305.6,2.32655667]
[1755860669395,1.12676379,4305.7,4305.6,2.32655667]
[1755860670386,0.66366379,4305.7,4305.6,2.32655667]
[1755860671193,0.36356379,4305.7,4305.6,2.62375667]
[1755860671404,0.36356379,4305.7,4305.6,3.16250717]
[1755860676304,0.00020001,4306.6,4306.5,2.32207128]
[1755860676603,0.29950001,4306.6,4306.4,2.32208877]
[1755860676804,0.66300715,4306.6,4306.4,2.32208877]
[1755860677104,0.4631,4306.5,4305.6,0.004]
[1755860677310,0.4631,4306.5,4306.0,2.32232628]
[1755860677507,0.38270071,4306.4,4306.0,2.32232628]
[1755860677691,0.38270071,4306.4,4306.1,2.32226979]
[1755860678006,0.3001,4305.9,4305.8,2.32244444]
[1755860678174,0.7597,4305.9,4305.8,2.32244444]
[1755860678808,1.12324485,4305.9,4305.8,2.32244444]
[1755860680012,1.12324485,4305.9,4305.8,2.61024444]
[1755860680013,0.36354485,4305.9,4305.8,2.61024444]
[1755860680213,0.36354485,4305.9,4305.8,3.10624506]
[1755860684481,0.36354485,4305.9,4305.8,3.55814506]
[1755860685626,0.36354485,4305.9,4305.8,3.10624506]
[1755860686392,0.36454485,4305.9,4305.8,3.10624506]
[1755860689115,0.36374485,4305.9,4305.8,3.10624506]
[1755860693733,0.66394485,4305.9,4305.8,2.81844506]
[1755860694045,1.12354485,4305.9,4305.8,2.32244444]
[1755860694642,0.66394485,4305.9,4305.8,2.32244444]
[1755860695049,0.66394485,4305.9,4305.8,2.34566892]
[1755860696515,0.66394485,4305.9,4305.8,2.32244444]
[1755860697119,1.12354485,4305.9,4305.8,2.32244444]
[1755860699214,1.12354485,4305.9,4305.6,2.32653967]
[1755860699461,1.12354485,4305.9,4305.6,0.004]
[1755860699462,0.4596,4305.8,4305.6,0.004]
[1755860699615,0.3002,4305.7,4305.6,2.32652764]
[1755860699829,0.7598,4305.7,4305.6,2.32652764]
[1755860700982,0.7598,4305.7,4305.6,0.004]
[1755860701174,0.759,4305.7,4305.6,2.32655667]
[1755860705747,0.36374485,4305.9,4305.8,2.32244879]
[1755860705960,0.66394485,4305.9,4305.8,2.32244879]
[1755860706668,1.12354485,4305.9,4305.8,2.32244879]
[1755860707356,0.66394485,4305.9,4305.7,2.34571003]
[1755860707561,0.4596,4305.8,4305.7,2.34571003]
[1755860707759,0.7598,4305.8,4305.7,2.34571003]
[1755860708283,0.3002,4305.8,4305.7,2.34571003]
[1755860708643,0.36374485,4305.9,4305.8,2.32244879]
[1755860708973,1.08154485,4305.9,4305.7,2.32248506]
[1755860709277,0.65084485,4305.9,4305.8,0.02322448]
[1755860709643,0.65084485,4305.9,4305.7,2.32249792]
[1755860709841,0.65084485,4305.9,4305.8,0.02322448]
[1755860710080,0.65084485,4305.9,4305.6,0.004]
[1755860710576,0.4307,4305.8,4305.6,0.004]
[1755860710786,0.2871,4305.7,4305.6,0.004]
[1755860711069,1.48806224,4305.7,4305.6,0.004]
[1755860711281,0.7178,4305.7,4305.6,0.004]
[1755860711572,0.7178,4305.7,4305.6,2.32655667]
[1755860711776,0.7178,4305.7,4305.6,0.004]
[1755860712790,0.36374485,4305.9,4305.8,2.32244879]
[1755860713377,0.65084485,4305.9,4305.8,2.32244879]
[1755860713580,1.08074485,4305.9,4305.7,2.32248524]
[1755860713989,1.08074485,4305.9,4305.7,2.32248167]
[1755860714346,1.08074485,4305.9,4305.6,2.32654351]
[1755860714773,1.08074485,4305.9,4305.7,2.32248276]
[1755860715259,0.4307,4305.8,4305.6,0.004]
[1755860715464,0.2871,4305.7,4305.6,2.3265432]
[1755860715648,0.7178,4305.7,4305.6,0.004]
[1755860716182,0.7178,4305.7,4305.6,2.32655667]
[1755860716388,0.7178,4305.7,4305.6,0.004]
[1755860717188,0.2871,4305.7,4305.6,2.32655667]
[1755860717391,0.36294485,4305.9,4305.6,2.32655667]
[1755860717689,0.79364485,4305.9,4305.7,2.32249967]
[1755860718598,0.36294485,4305.9,4305.7,2.32249967]
[1755860718903,0.36294485,4305.9,4305.8,3.72864879]
[1755860719049,0.001,4305.9,4305.8,3.75187327]
[1755860719244,0.001,4305.9,4305.8,6.72864879]
[1755860719544,0.001,4306.4,4305.8,6.72864879]
[1755860719545,0.001,4306.4,4306.3,2.98217913]
[1755860719750,0.001,4306.4,4306.3,3.85104404]
[1755860720052,0.001,4306.4,4306.3,4.28204404]
[1755860720766,0.001,4306.4,4306.3,4.25882225]
[1755860725686,0.0002,4306.4,4306.3,4.25882225]
[1755860726382,0.0002,4306.4,4306.3,7.28204404]
[1755860726581,0.0002,4306.4,4306.3,7.25882225]
[1755860731202,0.001,4307.2,4307.0,0.66]
[1755860731398,0.001,4307.2,4307.0,6.32021972]
[1755860731558,0.001,4307.2,4307.0,6.29700171]
[1755860731987,0.001,4307.2,4307.0,6.82107171]
[1755860732586,0.001,4307.2,4307.0,6.39007171]
[1755860732802,0.001,4307.2,4307.0,6.92051483]
[1755860733895,0.001,4307.2,4307.0,6.91806984]
[1755860734693,0.001,4307.2,4307.0,7.34906984]
[1755860736300,0.001,4307.2,4307.0,6.91806984]
[1755860737589,1e-08,4307.1,4307.0,6.91806984]
[1755860737804,0.00020001,4307.2,4307.1,5.98174781]
[1755860737996,0.28730001,4307.2,4307.1,6.5508089]
[1755860738514,0.28730001,4307.2,4307.1,2.32174781]
[1755860738695,0.74530001,4307.2,4307.1,2.32174781]
[1755860739276,0.74530001,4307.2,4307.0,0.09307]
[1755860739495,0.458,4307.1,4306.6,2.3220104]
[1755860739702,0.2882,4306.7,4306.6,2.32201736]
[1755860739908,0.7462,4306.7,4306.6,2.32201736]
[1755860740811,0.7462,4306.7,4306.3,0.69823]
[1755860741027,0.458,4306.6,4305.9,2.32239485]
[1755860741191,0.458,4306.6,4306.5,2.32207128]
[1755860741513,0.7462,4306.6,4306.5,2.32207128]
[1755860743545,0.7462,4306.6,4306.4,2.32211169]
[1755860743811,0.7462,4306.6,4305.8,0.02]
[1755860743812,0.458,4306.5,4305.8,0.02]
[1755860744014,0.2882,4305.9,4305.8,0.02]
[1755860744313,0.2882,4305.9,4305.8,2.34244879]
[1755860744480,1.10973494,4305.9,4305.8,2.34244879]
[1755860745089,1.10973494,4305.9,4305.8,0.02]
[1755860745517,1.45293584,4305.9,4305.8,0.02]
[1755860745729,1.10973494,4305.9,4305.8,0.02]
[1755860747418,3.43212979,4305.9,4305.8,0.02]
[1755860747628,6.70449338,4305.9,4305.8,0.02]
[1755860747790,6.43212979,4305.9,4305.8,0.02]
[1755860748134,7.21584205,4305.9,4305.8,0.02]
[1755860748435,39.07409894,4305.9,4305.8,0.02]
[1755860749324,38.85900049,4305.9,4305.8,0.02]
[1755860749632,5.98250272,4305.7,4305.6,0.004]
[1755860749802,43.60262016,4305.7,4305.6,0.004]
[1755860750008,43.60262016,4305.7,4305.2,0.004]
[1755860750009,2.3227185,4305.3,4305.2,0.004]
[1755860750200,42.231196,4305.3,4305.2,0.004]
[1755860750400,42.689196,4305.3,4305.2,0.004]
[1755860750622,43.14606367,4305.3,4305.2,0.004]
[1755860751914,43.80606367,4305.3,4305.2,0.004]
[1755860752090,46.1682033,4305.3,4305.2,0.004]
[1755860754120,45.5082033,4305.3,4305.2,0.004]
[1755860757621,45.79596037,4305.3,4305.2,0.004]
[1755860757818,5.98277246,4305.2,4305.1,1e-08]
[1755860758140,38.99834612,4305.2,4305.1,1e-08]
[1755860758438,5.98288037,4305.0,4304.8,0.024]
[1755860758614,36.55883744,4305.0,4304.8,0.024]
[1755860759011,37.01683744,4305.0,4304.8,0.024]
[1755860759550,36.06908037,4305.0,4304.8,0.024]
[1755860759842,37.80541381,4305.0,4304.8,0.024]
[1755860762440,37.80461381,4305.0,4304.8,0.024]
[1755860765915,38.09237088,4305.0,4304.8,0.024]
[1755860766415,5.98298829,4304.8,4304.7,1e-08]
[1755860766619,2.32318706,4304.5,4304.0,0.004]
[1755860766820,12.89253563,4304.3,4304.0,0.004]
[1755860767014,43.38595659,4304.3,4304.0,0.004]
[1755860767215,43.67371366,4304.3,4304.0,0.004]
[1755860767421,44.13171366,4304.3,4304.0,0.004]
[1755860767617,46.49385329,4304.3,4304.0,0.004]
[1755860767945,46.58705029,4304.3,4304.0,0.004]
[1755860768133,46.8014961,4304.3,4304.0,0.004]
[1755860768719,16.8014961,4304.3,4304.0,0.004]
[1755860768918,46.8014961,4304.3,4304.0,0.004]
[1755860769416,47.42512849,4304.3,4304.0,0.004]
[1755860770347,46.8014961,4304.3,4304.0,0.004]
[1755860770735,16.8016591,4304.3,4304.0,0.004]
[1755860771251,46.8016591,4304.3,4304.0,0.004]
[1755860772146,46.80177596,4304.3,4304.0,0.004]
[1755860772318,47.62825197,4304.3,4304.0,0.004]
[1755860773150,47.75731785,4304.3,4304.0,0.004]
[1755860773355,46.93084184,4304.3,4304.0,0.004]
[1755860773758,5.98331211,4304.2,4304.0,0.004]
[1755860774061,3.0,4304.0,4302.8,0.02]
[1755860774224,37.2450864,4304.2,4302.8,0.02]
[1755860774225,12.26149153,4302.9,4302.8,0.02]
[1755860774425,12.44083259,4302.9,4302.8,0.3255]
[1755860774624,5.81895509,4302.9,4302.8,0.3255]
[1755860774861,6.18281168,4302.9,4302.8,0.3255]
[1755860775370,39.1431366,4302.9,4302.8,0.02]
[1755860775575,38.6936366,4302.9,4302.8,0.02]
[1755860775940,39.1431366,4302.9,4302.8,0.02]
[1755860776142,38.6936366,4302.9,4302.8,0.02]
[1755860776444,6.18281168,4302.9,4302.8,0.3255]
[1755860777071,6.18281168,4302.9,4302.8,0.02]
[1755860777250,36.94871168,4302.9,4302.8,0.02]
[1755860778673,36.94871168,4302.9,4301.9,0.4455]
[1755860778674,11.94557773,4302.0,4301.9,0.004]
[1755860778873,14.48833379,4302.0,4301.9,0.004]
[1755860779076,13.86831943,4302.0,4301.9,0.004]
[1755860779288,13.86831943,4302.0,4301.9,0.3095]
[1755860779589,14.2322668,4302.0,4301.9,0.3095]
[1755860780385,15.16799834,4302.0,4301.9,0.004]
[1755860780585,15.61749834,4302.0,4301.9,0.004]
[1755860780967,14.9981668,4302.0,4301.9,0.004]
[1755860781162,44.5486668,4302.0,4301.9,0.004]
[1755860781364,44.9981668,4302.0,4301.9,0.004]
[1755860781566,45.34195184,4302.0,4301.9,0.004]
[1755860781764,45.78345184,4302.0,4301.9,0.004]
[1755860781965,45.78345184,4302.0,4300.8,0.02]
[1755860781966,0.66,4301.4,4300.8,0.02]
[1755860782189,0.66,4301.4,4299.5,0.4415]
[1755860782190,2.3251488,4300.8,4299.5,0.4415]
[1755860782404,2.3251488,4300.8,4298.8,0.02]
[1755860782405,6.6210775,4299.9,4299.7,0.4415]
[1755860782557,7.11681856,4299.9,4299.8,0.3255]
[1755860782957,9.44245403,4299.9,4299.8,0.02]
[1755860783183,12.44245403,4299.9,4299.8,0.02]
[1755860783382,12.44245403,4299.9,4299.8,0.3255]
[1755860783581,42.44245403,4299.9,4299.8,0.3255]
[1755860783791,42.44245403,4299.9,4299.8,0.02]
[1755860783994,45.48511265,4299.9,4299.8,0.02]
[1755860784275,53.66956097,4299.9,4299.8,0.02]
[1755860784699,53.22006097,4299.9,4299.8,0.02]
[1755860785069,53.66956097,4299.9,4299.8,0.02]
[1755860785273,53.66956097,4299.9,4299.8,0.024]
[1755860786902,53.66876097,4299.9,4299.8,0.024]
[1755860788408,6.22119968,4299.9,4299.8,0.3295]
[1755860788708,6.22119968,4299.9,4299.8,3.09668956]
[1755860788709,0.36411899,4299.9,4299.8,3.09668956]
[1755860789508,0.36411899,4299.9,4299.8,0.771]
[1755860789707,0.36411899,4299.9,4299.8,3.09668956]
[1755860789922,0.36411899,4299.9,4299.8,3.63893685]
[1755860791996,0.36411899,4299.9,4299.8,3.09668956]
[1755860792791,0.36411899,4299.9,4299.8,3.11994645]
[1755860792998,0.36411899,4299.9,4299.8,3.09668956]
[1755860793518,0.63528408,4301.8,4301.6,2.324664]
[1755860793519,0.02,4301.8,4301.6,2.324664]
[1755860793750,0.02,4301.8,4301.7,0.747]
[1755860793954,0.02,4301.8,4301.7,0.3055]
[1755860794756,0.02,4301.8,4299.6,0.66]
[1755860794757,0.3364,4301.8,4299.6,0.66]
[1755860794926,0.3364,4301.8,4301.0,2.3250145]
[1755860795122,0.31104122,4301.7,4301.1,2.32496345]
[1755860795435,0.31104122,4301.7,4300.0,2.325537]
[1755860795616,0.36395099,4301.6,4300.3,0.4415]
[1755860795816,2.32482658,4301.4,4300.4,2.3253176]
[1755860796015,0.36395099,4301.6,4300.9,2.32509425]
[1755860796230,0.36395099,4301.6,4301.5,0.3055]
[1755860796755,0.02,4301.8,4301.5,0.3055]
[1755860797671,0.02,4301.8,4301.7,2.32466234]
[1755860797878,0.02,4301.8,4301.7,2.65340896]
[1755860798070,0.02,4301.8,4301.7,3.6523518]
[1755860799066,0.0192,4301.8,4301.7,3.62910518]
[1755860800176,0.0192,4301.8,4300.7,2.32517976]
[1755860800177,0.0192,4301.8,4300.7,0.4593]
[1755860800370,0.0192,4301.8,4301.3,2.324858]
[1755860800963,0.0192,4301.8,4300.7,0.4593]
[1755860801269,0.0192,4301.8,4301.0,0.4593]
[1755860801473,0.0192,4301.8,4301.7,0.303]
[1755860801977,0.7865,4301.8,4300.6,0.4593]
[1755860802274,0.3184,4301.8,4300.6,0.4593]
[1755860802437,0.61908446,4301.8,4300.8,2.32514313]
[1755860802636,2.32477484,4301.5,4300.3,2.78471695]
[1755860802860,0.4681,4301.4,4299.9,2.32563547]
[1755860803136,0.4681,4301.4,4299.9,2.325588]
[1755860803339,2.32510089,4300.9,4299.9,2.325588]
[1755860803537,2.32516343,4300.8,4299.9,2.325588]
[1755860804139,0.36401798,4301.1,4299.8,0.024]
[1755860804140,0.27932634,4300.7,4299.8,0.024]
[1755860804339,0.4681,4300.7,4299.8,0.024]
[1755860804565,0.2992,4299.9,4299.8,0.024]
[1755860804776,5.62483547,4299.9,4299.8,0.024]
[1755860805088,6.09293547,4299.9,4299.8,0.024]
[1755860806075,3.0,4299.9,4299.8,0.327]
[1755860807072,3.0,4299.9,4299.8,0.024]
[1755860807572,6.39293547,4299.9,4299.8,0.024]
[1755860808072,3.5992,4299.9,4299.8,0.024]
[1755860808248,5.92483547,4299.9,4299.8,0.024]
[1755860808456,6.39293547,4299.9,4299.8,0.024]
[1755860808868,3.0,4299.9,4299.8,0.024]
[1755860809748,3.0,4299.9,4299.8,0.327]
[1755860809974,3.0,4299.9,4299.8,0.024]
[1755860811050,3.0,4299.9,4299.8,0.327]
[1755860811250,2.9992,4299.9,4299.8,0.327]
[1755860811572,2.9992,4299.9,4299.8,0.024]
[1755860812072,3.2984,4299.9,4299.8,0.024]
[1755860812275,6.1864342,4299.9,4299.8,0.024]
[1755860812478,6.09213547,4299.9,4299.8,0.024]
[1755860812976,36.58619403,4299.9,4299.8,0.024]
[1755860813177,6.58619403,4299.9,4299.8,0.024]
[1755860813346,36.58619403,4299.9,4299.8,0.024]
[1755860813974,38.94833366,4299.9,4299.8,0.024]
[1755860814178,36.15459819,4299.9,4299.8,0.024]
[1755860814383,6.11809403,4299.9,4299.8,0.024]
[1755860814677,6.58619403,4299.9,4299.8,0.024]
[1755860814875,36.58619403,4299.9,4299.8,0.024]
[1755860816281,36.58619403,4299.9,4299.3,0.004]
[1755860816282,0.66,4299.7,4299.3,1e-08]
[1755860816579,3.28510594,4299.4,4299.3,1e-08]
[1755860816780,36.7791645,4299.4,4299.3,1e-08]
[1755860817090,37.2472645,4299.4,4299.3,1e-08]
[1755860817302,37.2472645,4299.4,4296.8,0.02]
[1755860817303,0.66,4299.2,4296.8,0.02]
[1755860817579,5.62591769,4297.9,4296.8,0.02]
[1755860817753,36.11936703,4297.9,4296.8,0.02]
[1755860817946,4.26074934,4297.9,4296.8,0.02]
[1755860818170,4.26074934,4297.9,4297.2,2.8260931]
[1755860818171,3.0,4297.9,4297.2,2.8260931]
[1755860818478,3.0,4297.9,4297.2,0.499]
[1755860818479,36.09401769,4297.9,4297.2,0.499]
[1755860818713,38.45615732,4297.9,4297.2,0.499]
[1755860818854,16.68306838,4297.3,4297.2,0.499]
[1755860819049,16.98226838,4297.3,4297.2,0.499]
[1755860819273,2.32725918,4296.9,4296.8,0.02]
[1755860819476,35.62645918,4296.9,4296.8,0.02]
[1755860819784,52.3732204,4296.9,4296.8,0.02]
[1755860820016,38.17929346,4296.9,4296.8,0.02]
[1755860820170,3.0,4296.9,4296.8,0.323]
[1755860820364,3.0,4296.9,4296.8,0.7823]
[1755860820675,3.0,4296.9,4296.8,0.02]
[1755860820989,0.499,4298.0,4296.8,0.323]
[1755860821167,0.499,4298.0,4296.9,0.4593]
[1755860821367,2.82567238,4298.0,4296.9,0.4593]
[1755860821610,2.82567238,4298.0,4296.8,0.02]
[1755860821611,2.32706852,4297.3,4296.8,0.02]
[1755860821903,3.0,4297.1,4296.8,0.02]
[1755860822200,3.0,4297.8,4296.8,0.02]
[1755860822402,15.29859306,4297.9,4296.8,0.02]
[1755860822403,0.28256724,4297.9,4297.0,0.303]
[1755860822906,0.499,4298.0,4297.0,0.303]
[1755860823067,0.4681,4297.8,4296.8,0.02]
[1755860823273,2.32693426,4297.5,4296.8,0.02]
[1755860823502,2.9992,4297.3,4296.8,0.02]
[1755860823688,30.0,4297.2,4296.8,0.02]
[1755860823884,2.36213963,4297.1,4296.8,0.02]
[1755860824213,2.62645918,4296.9,4296.8,0.02]
[1755860824574,33.09455918,4296.9,4296.8,0.02]
[1755860824906,30.7673,4296.9,4296.8,0.02]
[1755860825109,2.82571111,4298.0,4296.8,0.02]
[1755860825110,1.58259022,4298.0,4296.8,0.323]
[1755860825309,30.46379607,4297.9,4296.8,2.65029348]
[1755860825607,3.0,4297.7,4296.8,0.323]
[1755860825805,0.46379607,4297.9,4296.8,0.323]
[1755860826025,3.0,4297.7,4296.9,2.32724146]
[1755860826176,3.0,4297.7,4296.8,0.02]
[1755860826177,2.32682835,4297.7,4296.8,0.02]
[1755860826380,3.0,4297.6,4296.8,0.02]
[1755860826576,3.86162948,4297.7,4296.8,0.02]
[1755860826577,0.86162948,4297.7,4296.8,0.02]
[1755860826909,3.0,4297.7,4296.8,0.02]
[1755860827112,0.46379607,4297.9,4297.6,0.303]
[1755860827409,0.46379607,4297.9,4296.9,2.32725918]
[1755860827410,3.46379607,4297.9,4296.9,2.78654927]
[1755860827609,0.46379607,4297.9,4297.0,2.32719965]
[1755860827810,0.46379607,4297.9,4296.8,0.02]
[1755860827997,2.32698841,4297.4,4296.8,0.02]
[1755860828198,3.0,4297.2,4296.8,0.02]
[1755860828403,34.29534721,4297.3,4296.8,0.02]
[1755860828404,3.0,4297.0,4296.8,0.02]
[1755860828605,4.29534713,4297.3,4296.8,0.02]
[1755860828806,3.0,4297.1,4296.8,0.02]
[1755860829109,5.61325918,4296.9,4296.8,0.02]
[1755860829313,6.45032018,4296.9,4296.8,0.02]
[1755860829611,6.88052018,4296.9,4296.8,0.02]
[1755860830115,4.553261,4296.9,4296.8,0.02]
[1755860830411,4.123061,4296.9,4296.8,0.02]
[1755860830730,3.0,4296.9,4296.8,0.3226]
[1755860831015,3.0,4296.9,4296.8,3.08331334]
[1755860831244,0.46379607,4297.9,4296.8,0.756]
[1755860831393,0.4923629,4298.5,4296.9,0.45667259]
[1755860831598,30.0,4298.4,4297.5,2.32692403]
[1755860831796,30.0,4298.4,4296.8,0.02]
[1755860831797,3.0,4298.3,4296.8,0.02]